bitfinex/quotes_ETHUSD_20240707
["timestamp","ask_amount","ask_price","bid_price","bid_amount"]
[1720325976925,1.13420474,3052.6,3052.3,2.29334]
[1720325977132,1.13420474,3052.5,3052.3,2.29334]
[1720325977469,1.13421597,3052.4,3052.3,2.29334]
[1720325977834,2.52030234,3052.7,3052.3,2.29334]
[1720325978041,1.13422559,3052.6,3052.3,2.29334]
[1720325978441,1.13422559,3052.6,3052.4,0.14486018]
[1720325979146,3.2792572,3052.8,3052.4,2.43813018]
[1720325979336,1.13421144,3052.5,3052.4,2.43813018]
[1720325979547,1.13421144,3052.5,3052.4,2.29327]
[1720325979968,1.13421144,3052.5,3052.4,2.4381033]
[1720325980376,2.17,3052.8,3052.5,2.29319]
[1720325980527,1.13416168,3052.7,3052.5,2.29319]
[1720325980739,3.55274871,3053.0,3052.5,2.29319]
[1720325980943,1.13413488,3052.9,3052.6,0.14474834]
[1720325981138,1.13413488,3052.8,3052.6,0.14474834]
[1720325981366,1.13413488,3052.7,3052.6,0.14474834]
[1720325982461,1.13415409,3052.7,3052.6,0.14474834]
[1720325982861,1.1341465,3052.7,3052.4,2.29327]
[1720325983183,1.13414884,3052.6,3052.5,2.29319]
[1720325983364,1.13414884,3052.6,3052.5,2.43798082]
[1720325983876,1.13417266,3052.6,3052.5,2.43798082]
[1720325984296,1.13417266,3052.7,3052.5,0.14479082]
[1720325984581,1.13417266,3052.6,3052.5,0.14479082]
[1720325984787,2.16285323,3052.7,3052.5,0.14473707]
[1720325984946,1.13417266,3052.6,3052.5,0.14473707]
[1720325985643,2.16286878,3052.6,3052.5,0.14473707]
[1720325987989,3.11986941,3052.6,3052.5,0.14473707]
[1720325988484,2.09118884,3052.6,3052.5,0.14473707]
[1720325988844,0.957,3052.6,3052.5,0.14473707]
[1720325989247,2.09118743,3052.6,3052.5,0.14473707]
[1720325989544,3.46521838,3052.6,3052.5,0.14473707]
[1720325990243,2.33103095,3052.6,3052.5,0.14473707]
[1720325990482,3.46521811,3052.6,3052.5,0.14473707]
[1720325990887,2.33103095,3052.6,3052.5,0.14473707]
[1720325991593,0.957,3052.6,3052.5,0.14473707]
[1720325992290,2.33148419,3052.6,3052.5,0.14473707]
[1720325992481,0.957,3052.6,3052.5,0.14473707]
[1720325992690,2.33145008,3052.6,3052.5,0.14473707]
[1720325993564,3.46563321,3052.6,3052.5,0.14473707]
[1720325993887,2.33145008,3052.6,3052.5,0.14473707]
[1720325994088,3.46562532,3052.6,3052.5,0.14473707]
[1720325994248,3.46562532,3052.6,3052.2,2.29341]
[1720325994453,3.46562532,3052.6,3052.0,4.55155]
[1720325994454,1.03078637,3052.3,3052.0,2.29355]
[1720325994848,1.03078637,3052.2,3052.0,2.29355]
[1720325995387,1.03078637,3052.2,3051.9,2.29364]
[1720325995865,1.03078637,3052.2,3052.0,2.29357]
[1720325997391,1.03078637,3052.3,3052.0,2.29357]
[1720325997847,1.03078637,3052.5,3052.0,2.29357]
[1720325998051,1.03078637,3052.4,3052.0,2.29357]
[1720325998474,1.03078637,3052.4,3052.2,2.29342]
[1720325998756,1.03074669,3052.4,3052.2,2.29342]
[1720326000874,1.37432892,3052.5,3052.2,2.29342]
[1720326000875,1.03074669,3052.3,3052.2,2.29342]
[1720326001101,1.37432892,3052.5,3052.2,2.29342]
[1720326001102,1.03074669,3052.4,3052.2,2.29342]
[1720326001302,1.03074669,3052.3,3052.2,2.29342]
[1720326001474,1.03074669,3052.4,3052.2,2.29342]
[1720326001679,1.37432892,3052.5,3052.2,2.29342]
[1720326001680,1.03049965,3052.3,3052.2,2.29342]
[1720326002585,2.16475393,3052.4,3052.2,2.29342]
[1720326002793,1.03049965,3052.3,3052.2,2.29342]
[1720326002963,2.16475313,3052.3,3052.2,2.29342]
[1720326003160,1.03049965,3052.4,3052.2,2.29342]
[1720326003367,1.13424337,3052.3,3052.2,2.29342]
[1720326003598,1.03049965,3052.4,3052.2,2.29342]
[1720326003869,2.16475264,3052.3,3052.2,2.29342]
[1720326004419,3.29900397,3052.3,3052.2,2.29342]
[1720326004567,2.16475175,3052.3,3052.0,2.29357]
[1720326004769,1.03049965,3052.3,3052.1,2.2935]
[1720326005269,1.13428202,3052.2,3052.1,2.2935]
[1720326005470,1.13427096,3052.2,3052.1,2.2935]
[1720326006563,1.03049965,3052.4,3052.2,2.2934]
[1720326006882,1.13423723,3052.3,3052.2,2.2934]
[1720326007413,1.03049965,3052.4,3052.2,2.2934]
[1720326007600,1.13422044,3052.3,3052.2,2.2934]
[1720326009014,1.13422044,3052.3,3052.2,2.43820696]
[1720326009313,1.13422044,3052.3,3052.2,4.86450696]
[1720326009821,1.03049965,3052.4,3052.3,2.29335]
[1720326009979,2.16469863,3052.4,3052.3,2.29335]
[1720326010314,2.16469863,3052.4,3052.3,2.43809527]
[1720326010607,1.03049965,3052.4,3052.3,2.43809527]
[1720326010837,2.16469867,3052.4,3052.3,2.43809527]
[1720326011036,1.37399953,3052.5,3052.3,2.43809527]
[1720326011313,1.1342215,3052.4,3052.3,2.43809527]
[1720326011514,2.16545616,3052.4,3052.3,2.43809527]
[1720326011717,1.1342215,3052.4,3052.3,2.43809527]
[1720326013711,1.1342215,3052.4,3052.3,0.14474527]
[1720326013889,1.1342215,3052.4,3052.0,2.29356]
[1720326014226,0.957,3052.3,3052.0,2.29356]
[1720326014844,0.957,3052.3,3052.1,2.29349]
[1720326015705,2.0912215,3052.4,3052.1,2.29349]
[1720326016336,0.957,3052.4,3052.1,2.29349]
[1720326017044,1.03890386,3052.4,3052.0,2.29356]
[1720326017255,0.60697969,3052.3,3051.9,2.29365]
[1720326017436,3.2814,3052.1,3051.7,2.2938]
[1720326018707,0.957,3052.1,3051.8,2.29371]
[1720326018908,1.0311997,3052.0,3051.8,2.29371]
[1720326023252,1.0311997,3052.0,3051.9,0.1443077]
[1720326023555,0.60688263,3052.0,3051.6,2.29384]
[1720326023738,0.60688263,3052.0,3051.9,0.1443077]
[1720326023943,2.32547869,3052.0,3051.6,2.29384]
[1720326024125,1.03115798,3051.7,3051.6,2.29384]
[1720326024316,2.50933266,3051.9,3051.7,2.2938]
[1720326024518,1.37487731,3051.9,3051.7,2.2938]
[1720326024719,1.13446204,3051.8,3051.7,2.2938]
[1720326025127,1.03101742,3051.8,3051.5,2.29393]
[1720326025324,1.03101742,3051.7,3051.5,2.29393]
[1720326026120,1.03101742,3051.6,3051.5,2.29393]
[1720326026319,1.03070284,3051.7,3051.5,2.29393]
[1720326026824,1.03047064,3051.7,3051.5,2.29393]
[1720326028823,1.98747064,3051.7,3051.5,2.29393]
[1720326029545,1.98747064,3051.7,3051.3,2.29409]
[1720326029546,2.2784,3051.6,3051.3,2.29409]
[1720326030617,1.03047064,3051.7,3051.3,2.29409]
[1720326031056,1.03047064,3051.8,3051.3,2.29409]
[1720326031446,1.03047064,3051.8,3051.1,5.29422]
[1720326031447,1.03047064,3051.8,3051.4,2.29402]
[1720326031755,1.03047064,3051.9,3051.6,2.29387]
[1720326031959,1.03047064,3052.0,3051.6,2.29387]
[1720326033961,1.03047064,3051.9,3051.6,2.29387]
[1720326034749,1.03047064,3051.8,3051.4,2.29402]
[1720326034921,3.2495,3051.7,3051.3,2.29409]
[1720326035262,4.27997064,3051.7,3051.3,2.29409]
[1720326035953,4.27894934,3051.7,3051.3,2.29409]
[1720326036326,3.2495,3051.7,3051.4,2.29402]
[1720326036660,0.957,3051.7,3051.4,2.43868612]
[1720326037359,1.02944118,3051.8,3051.4,2.43868612]
[1720326038057,0.957,3051.7,3051.4,2.43868612]
[1720326040767,1.02939145,3051.8,3051.4,2.43868612]
[1720326041068,1.02939145,3051.8,3051.5,2.29392]
[1720326041252,1.02939145,3051.9,3051.4,2.43868612]
[1720326041439,1.98639145,3052.0,3051.5,0.14464665]
[1720326041759,1.98639145,3052.0,3051.6,2.29382]
[1720326042059,1.98639145,3052.0,3051.4,2.29402]
[1720326042060,1.98639145,3052.0,3051.7,2.43836164]
[1720326042229,0.957,3052.0,3051.7,2.43836164]
[1720326042435,1.98654246,3052.0,3051.7,2.43836164]
[1720326042828,1.98654246,3052.0,3051.8,2.29372]
[1720326042829,1.02954246,3052.0,3051.8,2.29372]
[1720326043056,1.02954246,3052.1,3051.9,0.14447664]
[1720326043839,1.98654246,3052.1,3051.9,0.14447664]
[1720326045672,1.98684765,3052.1,3051.9,0.14447664]
[1720326045919,0.957,3052.1,3051.9,0.14447664]
[1720326046032,1.98686562,3052.1,3051.9,0.14447664]
[1720326046831,1.02986562,3052.1,3051.9,0.14447664]
[1720326047962,3.12124727,3052.0,3051.9,0.14447664]
[1720326048166,2.16424727,3052.0,3051.9,0.14447664]
[1720326048465,2.16424727,3052.0,3051.8,2.29372]
[1720326048666,1.02986562,3052.0,3051.8,2.29372]
[1720326049860,1.02986562,3052.1,3051.9,2.29365]
[1720326050234,1.02986562,3052.1,3052.0,0.14441688]
[1720326051857,2.41206568,3052.3,3052.0,2.60634613]
[1720326051858,1.02986562,3052.3,3052.0,2.60634613]
[1720326052028,1.02986562,3052.6,3052.2,2.29342]
[1720326052435,1.02986562,3052.6,3052.4,2.29322]
[1720326052733,1.02986562,3052.7,3052.4,2.29322]
[1720326052930,1.02986562,3052.7,3052.5,0.14416796]
[1720326053535,1.02986562,3052.7,3052.5,2.43734796]
[1720326055052,1.02969123,3052.8,3052.5,2.43734796]
[1720326056871,1.02969123,3052.9,3052.7,2.29303]
[1720326057070,1.02969123,3053.1,3052.9,2.2929]
[1720326057382,1.02969123,3053.2,3053.0,0.14375405]
[1720326057564,1.02969123,3053.2,3053.1,2.29275]
[1720326058068,1.02969123,3053.2,3053.1,2.43646159]
[1720326058393,1.02923016,3053.2,3053.1,2.43646159]
[1720326058576,1.98623016,3053.3,3053.1,2.43646159]
[1720326059590,1.98623016,3053.3,3053.1,2.38646159]
[1720326061604,1.02923016,3053.2,3053.1,0.14371159]
[1720326061801,1.33896439,3053.2,3053.1,0.14371159]
[1720326061960,1.33896439,3053.2,3052.9,2.29287]
[1720326062163,0.957,3053.0,3052.9,2.29287]
[1720326063502,2.4143,3052.9,3052.2,2.4312]
[1720326063715,0.957,3052.3,3052.2,2.29336]
[1720326064405,0.957,3052.5,3052.2,2.29336]
[1720326065373,1.37332556,3052.8,3052.0,2.29355]
[1720326065374,0.957,3052.3,3052.0,2.29355]
[1720326065698,0.957,3052.3,3051.8,2.29371]
[1720326065699,0.957,3052.1,3051.8,2.29371]
[1720326066008,0.08191119,3052.3,3051.7,2.29379]
[1720326066168,1.35134836,3052.3,3051.7,2.29379]
[1720326066363,0.08191503,3052.2,3051.7,2.29379]
[1720326067001,1.1099222,3052.2,3051.5,2.29395]
[1720326067221,1.72635576,3052.2,3051.6,2.29386]
[1720326067517,1.72635576,3052.2,3051.2,5.29411]
[1720326067665,1.72635576,3052.2,3051.3,3.0]
[1720326067862,1.72635576,3052.2,3051.2,2.29411]
[1720326068293,1.72635576,3052.2,3051.4,2.29396]
[1720326068505,1.72635576,3052.2,3051.5,0.14449498]
[1720326068706,0.08192341,3052.2,3051.6,2.29387]
[1720326068916,0.08192341,3052.2,3051.7,0.14440997]
[1720326069496,0.08192341,3052.2,3051.8,2.29372]
[1720326069689,0.08192341,3052.2,3051.9,0.14433841]
[1720326072013,1.02800717,3052.4,3051.9,0.14433841]
[1720326072014,0.08191506,3052.3,3051.9,0.14433841]
[1720326074726,1.10992223,3052.3,3051.9,0.14433841]
[1720326074931,0.08191515,3052.2,3051.9,0.14433841]
[1720326076041,0.08191459,3052.3,3051.9,0.14433841]
[1720326076624,1.10972882,3052.3,3051.9,0.14433841]
[1720326076962,0.08191516,3052.2,3051.9,0.14433841]
[1720326077736,1.02785297,3052.4,3051.9,0.14433841]
[1720326077940,0.08191517,3052.3,3051.9,2.29364]
[1720326078971,0.08191517,3052.3,3052.0,0.14430167]
[1720326080865,0.08191517,3052.3,3052.0,2.43787167]
[1720326081092,1.02785297,3052.4,3052.1,2.29348]
[1720326081226,1.10976658,3052.5,3052.2,0.14421285]
[1720326081423,1.02785297,3052.4,3052.2,0.14421285]
[1720326081629,1.10976658,3052.5,3052.2,0.14421285]
[1720326083069,1.10992949,3052.5,3052.2,0.14421285]
[1720326083447,1.02807464,3052.5,3052.2,2.43763285]
[1720326083643,1.71345773,3052.8,3052.5,2.2932]
[1720326083644,1.02807464,3052.8,3052.5,2.2932]
[1720326083849,1.02807464,3052.7,3052.6,0.14402948]
[1720326084172,1.02807464,3052.8,3052.6,0.14402948]
[1720326084480,3.30057464,3052.9,3052.6,0.14402948]
[1720326084665,1.02807464,3052.9,3052.6,0.14402948]
[1720326085246,1.02807464,3052.8,3052.6,0.14402948]
[1720326085852,1.02807464,3052.8,3052.6,2.43714948]
[1720326086056,1.02807464,3052.9,3052.7,2.29304]
[1720326086279,1.37076618,3053.0,3052.7,2.29304]
[1720326086280,1.02825112,3053.0,3052.8,0.14389079]
[1720326086603,1.02825112,3053.0,3052.7,2.29304]
[1720326087105,1.02825112,3053.0,3052.8,0.14389079]
[1720326087286,1.02825112,3053.0,3052.7,2.29304]
[1720326087488,1.02825112,3053.0,3052.8,0.14389079]
[1720326087671,1.02825112,3053.0,3052.7,2.29304]
[1720326087868,1.98525112,3053.0,3052.8,0.14389079]
[1720326088205,1.98525112,3053.0,3052.7,2.29304]
[1720326088372,1.02825112,3053.0,3052.8,2.29297]
[1720326088689,1.02825112,3053.0,3052.9,2.2929]
[1720326088893,1.98525112,3053.0,3052.9,2.43671954]
[1720326089107,0.957,3053.0,3052.9,2.43671954]
[1720326091089,1.02825112,3053.1,3052.9,2.43671954]
[1720326091292,1.98525112,3053.2,3053.0,2.29282]
[1720326091495,1.02825112,3053.2,3053.1,2.43648461]
[1720326091706,1.98525112,3053.2,3053.1,2.43648461]
[1720326091896,0.957,3053.2,3053.1,2.43648461]
[1720326092610,0.957,3053.2,3053.1,0.14373461]
[1720326092917,1.98497154,3053.2,3053.0,2.29282]
[1720326093115,1.98490253,3053.2,3053.1,0.14373461]
[1720326094596,0.957,3053.2,3053.1,0.14373461]
[1720326096198,1.03888262,3053.2,3053.1,0.14373461]
[1720326096401,6.25794751,3053.2,3053.1,0.14373461]
[1720326096584,6.25767763,3053.2,3052.6,2.2931]
[1720326096786,0.957,3052.9,3052.6,2.2931]
[1720326098301,0.957,3052.9,3052.7,0.14375095]
[1720326098622,0.08189338,3053.0,3052.7,0.14375095]
[1720326099035,0.957,3052.8,3052.7,0.14375095]
[1720326099384,1.98473649,3053.0,3052.6,2.29311]
[1720326099729,1.98473649,3053.0,3052.7,0.14375095]
[1720326099730,1.02773649,3053.0,3052.7,0.14375095]
[1720326101238,1.02773649,3053.2,3052.9,2.2929]
[1720326101417,1.02773649,3053.3,3052.9,2.2929]
[1720326101722,3.20064612,3053.2,3053.0,0.14355638]
[1720326101892,2.06662079,3053.2,3052.7,2.29301]
[1720326102092,0.957,3053.0,3052.8,0.14364132]
[1720326102289,0.957,3053.0,3052.7,2.29301]
[1720326102530,0.957,3053.0,3052.8,0.14364132]
[1720326102688,0.957,3053.0,3052.7,2.29301]
[1720326102892,3.3278,3053.0,3052.8,0.14364132]
[1720326103095,3.77152645,3053.0,3052.6,2.2931]
[1720326103300,3.3278,3053.0,3052.7,0.14368379]
[1720326104505,0.08189265,3052.9,3052.7,0.14368379]
[1720326107909,2.3708,3053.0,3052.7,0.14368379]
[1720326108115,1.03889267,3053.1,3052.7,0.14368379]
[1720326108431,1.02757572,3053.2,3052.7,0.2091977]
[1720326108635,1.98457572,3053.3,3052.9,2.2929]
[1720326109054,1.13396598,3053.2,3053.0,0.14353913]
[1720326109256,0.957,3053.1,3053.0,0.14353913]
[1720326109453,2.09099481,3053.1,3053.0,0.14353913]
[1720326109619,2.09099481,3053.1,3052.7,2.29304]
[1720326109969,0.957,3053.1,3052.7,2.29304]
[1720326110118,0.957,3053.1,3052.8,0.14361448]
[1720326110320,0.957,3053.1,3052.7,2.29304]
[1720326110515,1.13402628,3053.0,3052.8,0.14361448]
[1720326110712,0.957,3053.1,3052.7,2.29304]
[1720326110955,1.13403387,3053.0,3052.8,0.14361448]
[1720326111129,0.957,3053.1,3052.7,2.29304]
[1720326111331,1.13402596,3053.0,3052.8,0.14361448]
[1720326111531,0.957,3053.1,3052.7,2.29304]
[1720326111860,0.957,3053.1,3052.8,0.14361448]
[1720326112059,1.13402329,3053.0,3052.8,0.14361448]
[1720326112269,0.957,3053.1,3052.7,2.29304]
[1720326112419,1.13402404,3053.0,3052.9,0.14357201]
[1720326112620,1.13402404,3053.0,3052.8,0.14361448]
[1720326112947,2.09102404,3052.9,3052.5,2.29318]
[1720326113114,1.13402404,3052.8,3052.5,2.29318]
[1720326113315,0.957,3052.9,3052.6,0.14369943]
[1720326113515,1.13409433,3052.8,3052.6,0.14369943]
[1720326113776,0.957,3052.9,3052.6,0.14369943]
[1720326113950,1.13407406,3052.8,3052.6,0.14369943]
[1720326114152,0.957,3052.9,3052.4,2.29323]
[1720326114359,1.1340754,3052.8,3052.5,0.1437419]
[1720326114659,0.957,3052.9,3052.5,0.1437419]
[1720326114858,1.13408084,3052.8,3052.5,0.1437419]
[1720326115059,0.957,3052.9,3052.5,0.1437419]
[1720326115259,1.1340806,3052.8,3052.5,0.1437419]
[1720326115429,1.13408064,3052.8,3052.5,0.1437419]
[1720326115628,0.957,3052.9,3052.5,0.1437419]
[1720326115861,1.13407699,3052.8,3052.5,0.1437419]
[1720326116161,0.957,3052.9,3052.5,0.1437419]
[1720326116361,1.13407815,3052.8,3052.5,0.1437419]
[1720326116521,0.957,3052.9,3052.5,0.1437419]
[1720326116720,1.13408352,3052.8,3052.5,0.1437419]
[1720326116968,0.957,3052.9,3052.5,0.1437419]
[1720326117138,1.13408297,3052.8,3052.5,0.1437419]
[1720326117338,0.957,3052.9,3052.5,0.1437419]
[1720326117550,1.13407692,3052.8,3052.5,0.1437419]
[1720326117757,0.957,3052.9,3052.5,0.1437419]
[1720326117933,1.13408346,3052.8,3052.5,0.1437419]
[1720326118129,0.957,3052.9,3052.5,0.1437419]
[1720326118556,1.13408329,3052.8,3052.5,0.1437419]
[1720326118871,1.98419687,3052.9,3052.5,0.1437419]
[1720326119041,1.13408357,3052.8,3052.5,0.1437419]
[1720326119235,1.10908231,3053.0,3052.5,0.1437419]
[1720326119467,1.13407707,3052.9,3052.5,0.1437419]
[1720326119650,1.13407707,3052.8,3052.5,0.1437419]
[1720326119969,1.02719687,3053.0,3052.6,2.4125]
[1720326120150,1.13403177,3052.9,3052.7,2.43664312]
[1720326120350,1.02719687,3053.2,3052.7,2.43664312]
[1720326120552,1.13396461,3053.1,3052.8,2.35842689]
[1720326120757,1.13396461,3053.0,3052.9,2.43646434]
[1720326120931,0.08188506,3053.4,3052.9,2.43646434]
[1720326121130,1.02839056,3053.2,3052.9,2.43646434]
[1720326121366,1.13395882,3053.1,3052.9,2.43646434]
[1720326121566,1.02839056,3053.2,3053.0,2.29282]
[1720326121767,1.02839056,3053.4,3053.1,0.1434794]
[1720326121943,1.13387554,3053.3,3053.1,0.1434794]
[1720326122279,1.02839056,3053.6,3053.0,4.77082389]
[1720326122564,1.13379992,3053.5,3053.1,0.14343912]
[1720326122874,1.02839056,3053.6,3053.1,0.14343912]
[1720326123069,1.13377429,3053.5,3053.3,2.2926]
[1720326123367,1.02839056,3053.7,3053.4,0.14331174]
[1720326123565,1.02839056,3053.7,3053.3,2.2926]
[1720326123566,1.1337592,3053.6,3053.3,2.2926]
[1720326123805,2.16214976,3053.6,3053.4,0.14331174]
[1720326123933,1.02875496,3053.7,3053.6,2.29237]
[1720326124142,2.16246334,3053.8,3053.6,2.43559684]
[1720326124459,1.02875496,3053.9,3053.6,2.43559684]
[1720326125278,1.11062276,3054.1,3053.6,2.43559684]
[1720326126276,1.02875496,3054.1,3053.8,2.29222]
[1720326126439,1.02875496,3054.2,3053.9,2.29214]
[1720326126768,1.02875496,3054.2,3054.0,2.43511706]
[1720326127154,1.02875496,3054.3,3054.0,2.43511706]
[1720326127888,1.37167328,3054.5,3054.0,2.43511706]
[1720326127889,1.02875496,3054.4,3054.0,2.43511706]
[1720326128062,1.02875496,3054.4,3054.1,2.29197]
[1720326128258,1.02875496,3054.5,3054.0,2.43511706]
[1720326128457,1.02875496,3054.5,3054.2,2.43484219]
[1720326128665,1.02875496,3054.5,3054.2,2.29187]
[1720326128858,1.02875496,3054.5,3054.3,0.14292976]
[1720326129253,1.45352247,3054.7,3054.2,2.29187]
[1720326129254,1.02875496,3054.6,3054.2,2.29187]
[1720326129455,1.02875496,3054.6,3054.4,0.14288733]
[1720326129637,1.27698267,3054.6,3054.3,0.14292976]
[1720326129841,1.61990099,3054.6,3054.5,0.14284491]
[1720326130481,0.24822771,3054.6,3054.2,2.29187]
[1720326130654,1.27516747,3054.6,3054.5,0.14284491]
[1720326131180,1.27516747,3054.6,3054.2,2.29187]
[1720326131478,1.02693976,3054.7,3054.5,0.14284491]
[1720326131675,1.02693976,3054.7,3054.2,2.29187]
[1720326131969,0.08184983,3054.6,3054.2,2.29187]
[1720326132139,0.08184983,3054.6,3054.3,0.14292976]
[1720326132341,0.08184983,3054.6,3054.2,2.29187]
[1720326132670,0.08184983,3054.6,3054.4,0.14288733]
[1720326132872,0.08184983,3054.6,3054.3,0.1426939]
[1720326133038,0.08184983,3054.6,3054.5,0.14260904]
[1720326133241,0.08184983,3054.6,3054.4,0.14265147]
[1720326133554,0.08184983,3054.6,3054.5,0.14260904]
[1720326133875,0.08184983,3054.6,3054.2,2.29187]
[1720326134037,0.08184983,3054.6,3054.5,0.14260904]
[1720326134237,0.08184983,3054.6,3054.2,2.29187]
[1720326134471,0.08184989,3054.7,3054.5,0.14260904]
[1720326134673,0.32945603,3054.7,3054.2,2.29187]
[1720326135265,0.32945603,3054.7,3054.3,0.1426939]
[1720326135581,0.32945603,3054.7,3054.2,2.29187]
[1720326135758,0.32945603,3054.7,3054.4,0.14265147]
[1720326135958,0.32945603,3054.7,3054.2,2.29187]
[1720326136154,0.32945603,3054.7,3054.5,0.14260904]
[1720326136361,0.08184989,3054.7,3054.5,0.14260904]
[1720326136677,0.08184989,3054.7,3054.2,2.29187]
[1720326136885,0.08184989,3054.7,3054.6,0.14256662]
[1720326137054,0.08184989,3054.7,3054.2,2.29187]
[1720326137351,1.02609064,3055.0,3054.5,2.29168]
[1720326137551,1.36812086,3055.1,3054.6,0.2078015]
[1720326137552,1.02609064,3055.1,3054.6,0.2078015]
[1720326137756,4.31200883,3055.6,3054.8,2.29146]
[1720326137757,0.08183307,3055.5,3054.8,2.29146]
[1720326138061,2.15854332,3055.4,3054.8,2.29146]
[1720326138267,0.08183309,3055.3,3054.8,2.29146]
[1720326138468,0.08183309,3055.3,3054.9,0.14219779]
[1720326138763,0.08183309,3055.3,3054.8,2.29146]
[1720326138973,0.08183309,3055.3,3054.9,0.14219779]
[1720326139183,0.08183309,3055.4,3054.8,2.29146]
[1720326139379,0.08183309,3055.4,3054.9,0.14219779]
[1720326139552,0.08183309,3055.4,3054.8,2.29146]
[1720326139758,0.08183309,3055.4,3054.9,0.14219779]
[1720326140059,0.08183309,3055.4,3054.8,2.29146]
[1720326140569,0.08183309,3055.4,3054.9,0.14211539]
[1720326140776,0.08183309,3055.4,3054.8,2.29146]
[1720326140955,0.08183309,3055.4,3054.9,0.14211539]
[1720326141160,0.08183309,3055.4,3054.8,2.29146]
[1720326141403,0.08183309,3055.4,3054.9,0.14211539]
[1720326141566,0.08183309,3055.4,3054.8,2.29146]
[1720326141766,0.08183309,3055.4,3054.9,0.14211539]
[1720326141966,0.08183309,3055.4,3054.8,2.29146]
[1720326142274,0.08183309,3055.4,3054.9,0.14211539]
[1720326143602,2.37683309,3055.4,3054.9,0.14211539]
[1720326143907,2.37683309,3055.4,3054.7,2.29154]
[1720326144093,2.8406664,3055.4,3055.0,0.13701664]
[1720326144300,2.8406664,3055.4,3054.5,2.29168]
[1720326144521,2.37683309,3055.4,3054.5,2.29168]
[1720326144814,2.37683309,3055.4,3054.6,2.42878631]
[1720326145717,2.295,3055.0,3054.6,0.13718631]
[1720326145917,0.956,3054.7,3054.6,0.13718631]
[1720326146081,0.956,3054.7,3054.1,2.3276]
[1720326146406,4.71866,3055.0,3053.7,4.61989]
[1720326146605,0.956,3054.2,3053.8,0.13308935]
[1720326146768,0.956,3054.2,3053.7,4.61989]
[1720326146972,0.956,3054.2,3053.8,0.13308935]
[1720326147286,0.956,3054.2,3053.7,4.61989]
[1720326147496,0.956,3054.2,3053.9,0.13304691]
[1720326147694,0.956,3054.0,3053.8,0.13308935]
[1720326147900,0.956,3053.9,3053.1,2.29269]
[1720326148125,0.956,3053.4,3053.0,2.3276]
[1720326148769,0.956,3053.4,3053.0,4.62041]
[1720326148969,0.956,3053.6,3053.0,4.62041]
[1720326149872,0.08187428,3054.0,3053.0,4.62041]
[1720326150070,1.13384211,3053.9,3053.0,4.62041]
[1720326150296,0.08187376,3053.8,3053.0,4.62041]
[1720326150510,0.08187376,3053.8,3053.0,2.3276]
[1720326151282,0.08187375,3053.9,3053.0,4.62042]
[1720326152405,0.08187375,3053.9,3053.0,2.3276]
[1720326153180,2.37402375,3053.9,3053.0,2.3276]
[1720326153402,2.29215,3053.9,3053.0,2.3276]
[1720326155887,2.29223,3053.8,3053.0,2.3276]
[1720326157315,0.08187365,3053.7,3053.0,2.3276]
[1720326157628,2.29246,3053.5,3052.5,2.432]
[1720326157832,0.08188143,3053.4,3052.5,2.432]
[1720326158000,0.08188143,3053.4,3052.5,4.72519]
[1720326158515,0.08188143,3053.4,3052.6,0.11934773]
[1720326159430,2.37446143,3053.4,3052.6,0.11934773]
[1720326163421,0.08188143,3053.4,3052.6,0.11934773]
[1720326163598,2.37440143,3053.4,3052.6,0.11934773]
[1720326163800,2.29252,3053.4,3052.6,0.11934773]
[1720326164491,0.08188574,3053.3,3052.6,0.11934773]
[1720326172005,0.957,3053.1,3052.6,0.11934773]
[1720326180332,0.957,3053.1,3052.6,2.41245773]
[1720326182068,1.13403546,3053.0,3052.6,2.41245773]
[1720326182232,0.957,3053.1,3052.6,2.41245773]
[1720326182428,2.37433604,3053.5,3052.6,2.41245773]
[1720326182429,0.957,3052.9,3052.6,0.11934773]
[1720326187490,2.2681044,3052.8,3052.6,0.11934773]
[1720326187638,4.58145152,3052.7,3052.6,0.11934773]
[1720326187856,4.58162921,3052.7,3052.6,0.11934773]
[1720326188099,6.87467921,3052.7,3051.8,2.4169]
[1720326188251,0.957,3052.2,3051.8,2.4169]
[1720326188448,0.957,3052.2,3051.9,0.10357635]
[1720326189260,0.957,3052.3,3051.9,0.10357635]
[1720326198871,0.08190697,3052.5,3051.9,0.10357635]
[1720326199167,0.957,3052.4,3051.9,0.10357635]
[1720326199362,0.08190605,3052.6,3052.0,4.74027]
[1720326199611,0.08190119,3052.7,3052.1,0.16566983]
[1720326199814,0.08190119,3052.7,3052.1,0.10014888]
[1720326200167,0.08190119,3052.7,3052.1,2.39362888]
[1720326200484,0.08190119,3052.7,3052.2,2.4467]
[1720326200485,0.957,3052.6,3052.2,2.4467]
[1720326200878,0.957,3052.6,3052.3,0.10004487]
[1720326201316,0.957,3052.6,3052.2,2.4467]
[1720326201481,0.957,3052.6,3052.4,0.09998144]
[1720326201828,2.06529833,3052.7,3052.5,0.09993896]
[1720326202101,2.06529833,3052.7,3052.2,2.4467]
[1720326202509,2.06529833,3052.7,3052.3,0.09998395]
[1720326202670,1.03890119,3052.7,3052.3,0.09998395]
[1720326202877,1.03890119,3052.7,3052.2,2.4467]
[1720326202878,2.06529833,3052.7,3052.2,2.4467]
[1720326203411,2.06529833,3052.7,3052.3,0.09998205]
[1720326203616,1.03890119,3052.7,3052.3,0.09998205]
[1720326203785,1.03890119,3052.7,3052.2,2.4467]
[1720326203786,2.06550842,3052.7,3052.4,0.09993956]
[1720326204000,0.957,3052.5,3052.2,2.4467]
[1720326204286,0.957,3052.5,3052.3,0.09998205]
[1720326204610,0.957,3052.5,3052.1,2.29348]
[1720326204780,0.957,3052.5,3052.2,0.10002453]
[1720326205495,1.0389016,3052.5,3052.2,0.10002453]
[1720326205800,2.06550883,3052.5,3051.9,2.29362]
[1720326206178,2.06550883,3052.5,3052.0,0.10010952]
[1720326207297,2.06565522,3052.5,3052.0,0.10010952]
[1720326208522,1.98375362,3052.5,3052.0,0.10010952]
[1720326208701,1.02675362,3052.5,3052.1,2.29349]
[1720326208916,1.98375362,3052.7,3052.2,4.77961]
[1720326209225,1.98375362,3052.7,3052.2,4.87965928]
[1720326209920,1.98375362,3052.7,3052.2,4.94517923]
[1720326210223,1.02677372,3052.8,3052.3,4.77954]
[1720326210524,1.02677372,3052.8,3052.4,2.39323431]
[1720326210697,1.02677372,3052.8,3052.5,0.06551741]
[1720326210883,1.02677372,3052.9,3052.5,0.06551741]
[1720326211084,1.02677372,3052.9,3052.6,0.09987935]
[1720326211680,1.13411361,3052.8,3052.6,2.39298935]
[1720326211883,1.02677372,3052.9,3052.6,2.39298935]